fUSD/lending_fUSD_20240318
["ID","MTS","AMOUNT","RATE_DAILY","PERIOD"]
[319432355,1710736296393,-500.0,0.0003178,4]
[319432356,1710736296403,-500.0,0.0003178,4]
[319432357,1710736296414,-500.0,0.0003178,4]
[319432358,1710736296424,-500.0,0.0003178,4]
[319432359,1710736296434,-500.0,0.0003178,4]
[319432360,1710736296445,-500.0,0.0003178,4]
[319432361,1710736296454,-500.0,0.0003178,4]
[319432362,1710736296464,-500.0,0.0003178,4]
[319432363,1710736296474,-500.0,0.0003178,4]
[319432364,1710736296484,-500.0,0.0003178,4]
[319432365,1710736296494,-500.0,0.0003178,4]
[319432366,1710736296505,-500.0,0.0003178,4]
[319432367,1710736296515,-869.9,0.0003178,4]
[319432368,1710736296524,-500.0,0.0003178,4]
[319432369,1710736296535,-1373.45,0.0003178,4]
[319432370,1710736296545,-536.23,0.0003178,4]
[319432371,1710736296555,-500.0,0.0003178,4]
[319432372,1710736296564,-500.0,0.0003178,4]
[319432373,1710736296575,-1105.28,0.0003178,4]
[319432374,1710736296585,-500.0,0.0003178,4]
[319432375,1710736296595,-500.0,0.0003178,4]
[319432376,1710736296605,-500.0,0.0003178,4]
[319432377,1710736296615,-500.0,0.0003178,4]
[319432378,1710736296625,-504.52784029,0.0003178,4]
[319432379,1710736296634,-500.0,0.0003178,4]
[319432380,1710736296644,-500.0,0.0003178,4]
[319432381,1710736296654,-500.0,0.0003178,4]
[319432382,1710736296664,-622.18,0.0003178,4]
[319432383,1710736296674,-500.0,0.0003178,4]
[319432384,1710736296685,-500.0,0.0003178,4]
[319432385,1710736296694,-500.0,0.0003178,4]
[319432386,1710736296704,-500.0,0.0003178,4]
[319432387,1710736296714,-500.0,0.0003178,4]
[319432388,1710736296724,-500.0,0.0003178,4]
[319432389,1710736296734,-500.0,0.0003178,4]
[319432390,1710736296750,-500.0,0.0003178,4]
[319432391,1710736296760,-500.0,0.0003178,4]
[319432392,1710736296770,-501.4,0.0003178,4]
[319432393,1710736296780,-500.0,0.0003178,4]
[319432394,1710736296791,-2231.25,0.0003178,4]
[319432395,1710736296801,-500.0,0.0003178,4]
[319432396,1710736296811,-500.0,0.0003178,4]
[319432397,1710736296821,-500.0,0.0003178,4]
[319432398,1710736296831,-500.0,0.0003178,4]
[319432399,1710736296841,-735.9,0.0003178,4]
[319432400,1710736296851,-500.0,0.0003178,4]
[319432401,1710736296861,-500.0,0.0003178,4]
[319432402,1710736296871,-500.0,0.0003178,4]
[319432403,1710736296881,-500.0,0.0003178,4]
[319432404,1710736296891,-500.0,0.0003178,4]
[319432405,1710736296901,-500.0,0.0003178,4]
[319432406,1710736296911,-500.0,0.0003178,4]
[319432407,1710736296922,-500.0,0.0003178,4]
[319432408,1710736296932,-943.04,0.0003178,4]
[319432409,1710736296942,-500.0,0.0003178,4]
[319432410,1710736296952,-500.0,0.0003178,4]
[319432411,1710736296963,-500.0,0.0003178,4]
[319432412,1710736296973,-500.0,0.0003178,4]
[319432413,1710736296984,-500.0,0.0003178,4]
[319432414,1710736296995,-500.0,0.0003178,4]
[319432415,1710736297007,-500.0,0.0003178,4]
[319432416,1710736297018,-503.91,0.0003178,4]
[319432417,1710736297028,-500.0,0.0003178,4]
[319432418,1710736297038,-500.0,0.0003178,4]
[319432419,1710736297048,-1566.14,0.0003178,4]
[319432420,1710736297059,-500.0,0.0003178,4]
[319432421,1710736297069,-500.0,0.0003178,4]
[319432422,1710736297079,-364.12830627,0.0003178,4]
[319432423,1710736297089,-500.0,0.0003178,4]
[319432424,1710736297100,-500.0,0.0003178,4]
[319432425,1710736297110,-500.0,0.0003178,4]
[319432426,1710736297121,-500.0,0.0003178,4]
[319432427,1710736297131,-500.0,0.0003178,4]
[319432428,1710736297142,-507.78,0.0003178,4]
[319432429,1710736297152,-500.0,0.0003178,4]
[319432430,1710736297162,-504.34652114,0.0003178,4]
[319432431,1710736297172,-500.0,0.0003178,4]
[319432432,1710736297182,-434.72032292,0.0003178,4]
[319432433,1710736297192,-546.38960918,0.0003178,4]
[319432434,1710736297202,-500.0,0.0003178,4]
[319432435,1710736297212,-500.0,0.0003178,4]
[319432436,1710736297222,-500.0,0.0003178,4]
[319432437,1710736297231,-500.0,0.0003178,4]
[319432438,1710736297241,-500.0,0.0003178,4]
[319432439,1710736297258,-832.17,0.0003178,4]
[319432440,1710736297268,-500.0,0.0003178,4]
[319432441,1710736297278,-500.0,0.0003178,4]
[319432442,1710736297287,-500.0,0.0003178,4]
[319432443,1710736297297,-500.0,0.0003178,4]
[319432444,1710736297306,-398.80390967,0.0003178,4]
[319432445,1710736297316,-500.0,0.0003178,4]
[319432446,1710736297324,-1123.76,0.0003178,4]
[319432447,1710736297333,-600.34,0.0003178,4]
[319432448,1710736297342,-710.22,0.0003178,4]
[319432449,1710736297352,-500.0,0.0003178,4]
[319432450,1710736297361,-500.0,0.0003178,4]
[319432451,1710736297372,-535.20360836,0.0003178,4]
[319432452,1710736297382,-500.0,0.0003178,4]
[319432453,1710736297391,-500.0,0.0003178,4]
[319432454,1710736297401,-1438.95,0.0003178,4]
[319432455,1710736297411,-1027.19,0.0003178,4]
[319432456,1710736297420,-500.0,0.0003178,4]
[319432457,1710736297430,-500.0,0.0003178,4]
[319432458,1710736297440,-624.55,0.0003178,4]
[319432459,1710736297450,-500.0,0.0003178,4]
[319432460,1710736297460,-500.0,0.0003178,4]
[319432461,1710736297470,-500.0,0.0003178,4]
[319432462,1710736297479,-595.77,0.0003178,4]
[319432463,1710736297488,-1826.25,0.0003178,4]
[319432464,1710736297505,-500.0,0.0003178,4]
[319432465,1710736297515,-500.0,0.0003178,4]
[319432466,1710736297525,-154.30282084,0.0003178,4]
[319432467,1710736297536,-931.82,0.0003178,4]
[319432468,1710736297545,-500.0,0.0003178,4]
[319432469,1710736297555,-2156.89,0.0003178,4]
[319432470,1710736297565,-626.3,0.0003178,4]
[319432471,1710736297574,-500.0,0.0003178,4]
[319432472,1710736297584,-500.0,0.0003178,4]
[319432473,1710736297593,-500.0,0.0003178,4]
[319432474,1710736297603,-403.62567477,0.0003178,4]
[319432475,1710736297612,-500.0,0.0003178,4]
[319432476,1710736297622,-523.4942559,0.0003178,4]
[319432477,1710736297632,-2005.2,0.0003178,4]
[319432478,1710736297642,-500.0,0.0003178,4]
[319432479,1710736297652,-500.0,0.0003178,4]
[319432480,1710736297661,-500.0,0.0003178,4]
[319432481,1710736297671,-500.0,0.0003178,4]
[319432482,1710736297681,-500.0,0.0003178,4]
[319432483,1710736297690,-2463.3,0.0003178,4]
[319432484,1710736297700,-500.0,0.0003178,4]
[319432485,1710736297709,-500.0,0.0003178,4]
[319432486,1710736297719,-572.99568191,0.0003178,4]
[319432487,1710736297729,-500.0,0.0003178,4]
[319432488,1710736297739,-500.0,0.0003178,4]
[319432489,1710736297754,-2094.29,0.0003178,4]
[319432490,1710736297763,-911.56,0.0003178,4]
[319432491,1710736297772,-500.0,0.0003178,4]
[319432492,1710736297782,-2639.58,0.0003178,4]
[319432493,1710736297791,-500.0,0.0003178,4]
[319432494,1710736297801,-248.78105935,0.0003178,4]
[319432495,1710736297810,-500.0,0.0003178,4]
[319432496,1710736297821,-500.0,0.0003178,4]
[319432497,1710736297831,-500.0,0.0003178,4]
[319432498,1710736297840,-523.09,0.0003178,4]
[319432499,1710736297849,-3465.75,0.0003178,4]
[319432500,1710736297858,-500.0,0.0003178,4]
[319432501,1710736297868,-500.0,0.0003178,4]
[319432502,1710736297877,-3439.16,0.0003178,4]
[319432503,1710736297886,-1239.79,0.0003178,4]
[319432504,1710736297896,-500.0,0.0003178,4]
[319432505,1710736297905,-865.02,0.0003178,4]
[319432506,1710736297914,-770.0,0.0003178,4]
[319432507,1710736297924,-500.0,0.0003178,4]
[319432508,1710736297933,-1050.75,0.0003178,4]
[319432509,1710736297942,-500.0,0.0003178,4]
[319432510,1710736297951,-639.93,0.0003178,4]
[319432511,1710736297961,-482.57499493,0.0003178,4]
[319432512,1710736297970,-3922.62,0.0003178,4]
[319432513,1710736297979,-234.83607553,0.0003178,4]
[319432514,1710736297988,-500.0,0.0003178,4]
[319432515,1710736298000,-500.0,0.0003178,4]
[319432516,1710736298009,-500.0,0.0003178,4]
[319432517,1710736298019,-953.43,0.0003178,4]
[319432518,1710736298029,-611.87,0.0003178,4]
[319432519,1710736298038,-500.0,0.0003178,4]
[319432520,1710736298048,-798.65,0.0003178,4]
[319432521,1710736298058,-2710.57,0.0003178,4]
[319432522,1710736298068,-500.0,0.0003178,4]
[319432523,1710736298077,-2948.74,0.0003178,4]
[319432524,1710736298087,-500.0,0.0003178,4]
[319432525,1710736298097,-539.71,0.0003178,4]
[319432526,1710736298106,-500.0,0.0003178,4]
[319432527,1710736298116,-500.0,0.0003178,4]
[319432528,1710736298125,-510.12038929,0.0003178,4]
[319432529,1710736298135,-500.0,0.0003178,4]
[319432530,1710736298144,-500.0,0.0003178,4]
[319432531,1710736298154,-500.0,0.0003178,4]
[319432532,1710736298164,-500.0,0.0003178,4]
[319432533,1710736298174,-500.0,0.0003178,4]
[319432534,1710736298184,-1200.43,0.0003178,4]
[319432535,1710736298193,-500.0,0.0003178,4]
[319432536,1710736298203,-500.0,0.0003178,4]
[319432537,1710736298212,-500.0,0.0003178,4]
[319432538,1710736298222,-500.0,0.0003178,4]
[319432539,1710736298231,-500.0,0.0003178,4]
[319432540,1710736298241,-500.0,0.0003178,4]
[319432541,1710736298252,-593.8,0.0003178,4]
[319432542,1710736298262,-646.93,0.0003178,4]
[319432543,1710736298271,-3040.38,0.0003178,4]
[319432544,1710736298280,-912.86,0.0003178,4]
[319432545,1710736298290,-521.56,0.0003178,4]
[319432546,1710736298300,-500.0,0.0003178,4]
[319432547,1710736298309,-500.0,0.0003178,4]
[319432548,1710736298319,-500.0,0.0003178,4]
[319432549,1710736298328,-2075.71,0.0003178,4]
[319432550,1710736298337,-1026.81,0.0003178,4]
[319432551,1710736298346,-500.0,0.0003178,4]
[319432552,1710736298356,-788.56,0.0003178,4]
[319432553,1710736298365,-500.0,0.0003178,4]
[319432554,1710736298374,-405.9612217,0.0003178,4]
[319432555,1710736298446,-501.84819195,0.0003178,4]
[319432556,1710736298456,-615.18,0.0003178,4]
[319432557,1710736298466,-500.0,0.0003178,4]
[319432558,1710736298476,-535.51882745,0.0003178,4]
[319432559,1710736298485,-1506.09,0.0003178,4]
[319432560,1710736298494,-500.0,0.0003178,4]
[319432561,1710736298506,-500.0,0.0003178,4]
[319432562,1710736298515,-500.0,0.0003178,4]
[319432563,1710736298525,-500.0,0.0003178,4]
[319432564,1710736298534,-500.0,0.0003178,4]
[319432565,1710736298544,-1442.43,0.0003178,4]
[319432566,1710736298554,-500.0,0.0003178,4]
[319432567,1710736298564,-4584.29,0.0003178,4]
[319432568,1710736298572,-1419.83,0.0003178,4]
[319432569,1710736298582,-1416.16,0.0003178,4]
[319432570,1710736298590,-500.0,0.0003178,4]
[319432571,1710736298600,-1501.08,0.0003178,4]
[319432572,1710736298609,-500.0,0.0003178,4]
[319432573,1710736298618,-500.0,0.0003178,4]
[319432574,1710736298626,-1326.91,0.0003178,4]
[319432575,1710736298635,-500.0,0.0003178,4]
[319432576,1710736298645,-500.0,0.0003178,4]
[319432577,1710736298654,-500.0,0.0003178,4]
[319432578,1710736298663,-1157.88,0.0003178,4]
[319432579,1710736298677,-519.62707662,0.0003178,4]
[319432580,1710736298687,-500.0,0.0003178,4]
[319432581,1710736298696,-522.83,0.0003178,4]
[319432582,1710736298706,-1901.89,0.0003178,4]
[319432583,1710736298715,-884.27,0.0003178,4]
[319432584,1710736298724,-500.0,0.0003178,4]
[319432585,1710736298738,-718.57,0.0003178,4]
[319432586,1710736298750,-500.0,0.0003178,4]
[319432587,1710736298760,-500.0,0.0003178,4]
[319432588,1710736298770,-500.0,0.0003178,4]
[319432589,1710736298781,-626.44,0.0003178,4]
[319432590,1710736298792,-1481.56,0.0003178,4]
[319432591,1710736298802,-435.49340801,0.0003178,4]
[319432592,1710736298812,-820.19,0.0003178,4]
[319432593,1710736298823,-616.04,0.0003178,4]
[319432594,1710736298834,-661.6,0.0003178,4]
[319432595,1710736298844,-807.78,0.0003178,4]
[319432596,1710736298854,-576.56,0.0003178,4]
[319432597,1710736298864,-500.0,0.0003178,4]
[319432598,1710736298874,-500.0,0.0003178,4]
[319432599,1710736298884,-1258.08,0.0003178,4]
[319432600,1710736298894,-500.0,0.0003178,4]
[319432601,1710736298905,-922.75,0.0003178,4]
[319432602,1710736298915,-500.0,0.0003178,4]
[319432603,1710736298925,-500.0,0.0003178,4]
[319432604,1710736298934,-500.0,0.0003178,4]
[319432605,1710736298945,-1859.01,0.0003178,4]
[319432606,1710736298955,-998.14,0.0003178,4]
[319432607,1710736298966,-500.0,0.0003178,4]
[319432608,1710736298977,-712.78,0.0003178,4]
[319432609,1710736298987,-3134.02,0.0003178,4]
[319432610,1710736298999,-720.74,0.0003178,4]
[319432611,1710736299009,-500.0,0.0003178,4]
[319432612,1710736299019,-835.55,0.0003178,4]
[319432613,1710736299029,-794.41,0.0003178,4]
[319432614,1710736299039,-3743.94,0.0003178,4]
[319432615,1710736299050,-500.0,0.0003178,4]
[319432616,1710736299060,-642.05,0.0003178,4]
[319432617,1710736299070,-1113.65,0.0003178,4]
[319432618,1710736299080,-589.6,0.0003178,4]
[319432619,1710736299090,-500.0,0.0003178,4]
[319432620,1710736299100,-500.0,0.0003178,4]
[319432621,1710736299110,-633.04,0.0003178,4]
[319432622,1710736299120,-512.73,0.0003178,4]
[319432623,1710736299130,-774.64,0.0003178,4]
[319432624,1710736299141,-1524.04,0.0003178,4]
[319432625,1710736299151,-1898.65,0.0003178,4]
[319432626,1710736299161,-1586.83,0.0003178,4]
[319432627,1710736299170,-500.0,0.0003178,4]
[319432628,1710736299181,-500.0,0.0003178,4]
[319432629,1710736299191,-500.0,0.0003178,4]
[319432630,1710736299201,-833.34,0.0003178,4]
[319432631,1710736299211,-1329.2,0.0003178,4]
[319432632,1710736299222,-500.0,0.0003178,4]
[319432633,1710736299232,-501.93,0.0003178,4]
[319432634,1710736299242,-500.0,0.0003178,4]
[319432635,1710736299256,-574.74,0.0003178,4]
[319432636,1710736299267,-500.0,0.0003178,4]
[319432637,1710736299277,-500.0,0.0003178,4]
[319432638,1710736299287,-500.0,0.0003178,4]
[319432639,1710736299297,-899.79,0.0003178,4]
[319432640,1710736299308,-500.0,0.0003178,4]
[319432641,1710736299319,-836.63,0.0003178,4]
[319432642,1710736299330,-663.74,0.0003178,4]
[319432643,1710736299340,-1143.03,0.0003178,4]
[319432644,1710736299350,-500.0,0.0003178,4]
[319432645,1710736299360,-1917.2,0.0003178,4]
[319432646,1710736299370,-1716.33,0.0003178,4]
[319432647,1710736299380,-1304.54,0.0003178,4]
[319432648,1710736299390,-500.0,0.0003178,4]
[319432649,1710736299400,-705.47,0.0003178,4]
[319432650,1710736299411,-500.0,0.0003178,4]
[319432651,1710736299422,-794.56,0.0003178,4]
[319432652,1710736299432,-209.83927932,0.0003178,4]
[319432653,1710736299443,-500.0,0.0003178,4]
[319432654,1710736299454,-2333.6,0.0003178,4]
[319432655,1710736299465,-758.7,0.0003178,4]
[319432656,1710736299475,-588.98,0.0003178,4]
[319432657,1710736299486,-560.65,0.0003178,4]
[319432658,1710736299497,-1061.17,0.0003178,4]
[319432659,1710736299509,-500.0,0.0003178,4]
[319432660,1710736299519,-500.0,0.0003178,4]
[319432661,1710736299530,-1095.12,0.0003178,4]
[319432662,1710736299540,-500.0,0.0003178,4]
[319432663,1710736299552,-2145.95,0.0003178,4]
[319432664,1710736299562,-501.50870388,0.0003178,4]
[319432665,1710736299573,-1627.27,0.0003178,4]
[319432666,1710736299584,-500.0,0.0003178,4]
[319432667,1710736299595,-500.0,0.0003178,4]
[319432668,1710736299606,-500.0,0.0003178,4]
[319432669,1710736299617,-502.81509492,0.0003178,4]
[319432670,1710736299627,-2012.26,0.0003178,4]
[319432671,1710736299638,-1352.76,0.0003178,4]
[319432672,1710736299649,-500.0,0.0003178,2]
[319432673,1710736299660,-537.95,0.0003178,4]
[319432674,1710736299670,-500.0,0.0003178,4]
[319432675,1710736299682,-2747.25,0.0003178,4]
[319432676,1710736299693,-606.33,0.0003178,4]
[319432677,1710736299704,-500.0,0.0003178,4]
[319432678,1710736299715,-500.0,0.0003178,4]
[319432679,1710736299727,-500.0,0.0003178,4]
[319432680,1710736299738,-500.0,0.0003178,4]
[319432681,1710736299753,-500.0,0.0003178,4]
[319432682,1710736299765,-500.0,0.0003178,4]
[319432683,1710736299776,-554.01,0.0003178,4]
[319432684,1710736299787,-807.58,0.0003178,4]
[319432685,1710736299798,-2956.82,0.0003178,4]
[319432686,1710736299808,-500.0,0.0003178,4]
[319432687,1710736299819,-500.0,0.0003178,4]
[319432688,1710736299831,-500.0,0.0003178,4]
[319432689,1710736299841,-1607.18,0.0003178,4]
[319432690,1710736299852,-500.0,0.0003178,4]
[319432691,1710736299862,-1221.54,0.0003178,4]
[319432692,1710736299873,-500.0,0.0003178,4]
[319432693,1710736299883,-1838.23,0.0003178,4]
[319432694,1710736299894,-1026.01,0.0003178,4]
[319432695,1710736299904,-500.0,0.0003178,4]
[319432696,1710736299915,-842.1,0.0003178,4]
[319432697,1710736299926,-512.31,0.0003178,4]
[319432698,1710736299947,-500.0,0.0003178,4]
[319432699,1710736299964,-831.26,0.0003178,4]
[319432700,1710736299978,-1157.32,0.0003178,4]
[319432701,1710736299994,-1448.23,0.0003178,4]
[319432702,1710736300012,-500.0,0.0003178,4]
[319432703,1710736300027,-556.38,0.0003178,4]
[319432704,1710736300042,-500.0,0.0003178,4]
[319432705,1710736300057,-1287.24,0.0003178,4]
[319432706,1710736300074,-500.0,0.0003178,4]
[319432707,1710736300088,-1436.69,0.0003178,4]
[319432708,1710736300104,-1335.54,0.0003178,4]
[319432709,1710736300120,-500.0,0.0003178,4]
[319432710,1710736300135,-1968.76,0.0003178,4]
[319432711,1710736300149,-799.94,0.0003178,4]
[319432712,1710736300163,-1597.09,0.0003178,4]
[319432713,1710736300181,-500.0,0.0003178,4]
[319432714,1710736300198,-500.0,0.0003178,4]
[319432715,1710736300211,-500.0,0.0003178,4]
[319432716,1710736300223,-632.08,0.0003178,4]
[319432717,1710736300237,-681.46,0.0003178,4]
[319432718,1710736300253,-1138.91,0.0003178,4]
[319432719,1710736300266,-1427.1,0.0003178,4]
[319432720,1710736300280,-809.76,0.0003178,4]
[319432721,1710736300294,-500.0,0.0003178,4]
[319432722,1710736300306,-1229.86,0.0003178,4]
[319432723,1710736300320,-691.68,0.0003178,4]
[319432724,1710736300332,-500.0,0.0003178,4]
[319432725,1710736300346,-2635.68,0.0003178,4]
[319432726,1710736300360,-500.0,0.0003178,4]
[319432727,1710736300373,-500.0,0.0003178,4]
[319432728,1710736300386,-500.0,0.0003178,4]
[319432729,1710736300399,-500.0,0.0003178,4]
[319432730,1710736300413,-788.73,0.0003178,4]
[319432731,1710736300428,-500.0,0.0003178,4]
[319432732,1710736300442,-505.96267304,0.0003178,4]
[319432733,1710736300456,-500.0,0.0003178,4]
[319432734,1710736300469,-500.0,0.0003178,4]
[319432735,1710736300483,-604.35787784,0.0003178,4]
[319432736,1710736300497,-500.0,0.0003178,4]
[319432737,1710736300510,-500.0,0.0003178,4]
[319432738,1710736300523,-2115.38,0.0003178,4]
[319432739,1710736300535,-500.0,0.0003178,4]
[319432740,1710736300548,-1520.72,0.0003178,4]
[319432741,1710736300561,-1607.09,0.0003178,4]
[319432742,1710736300577,-500.0,0.0003178,4]
[319432743,1710736300590,-500.0,0.0003178,4]
[319432744,1710736300603,-1832.55,0.0003178,4]
[319432745,1710736300616,-500.0,0.0003178,4]
[319432746,1710736300630,-824.57,0.0003178,4]
[319432747,1710736300643,-500.0,0.0003178,4]
[319432748,1710736300656,-1581.71,0.0003178,4]
[319432749,1710736300669,-500.0,0.0003178,4]
[319432750,1710736300683,-583.42,0.0003178,4]
[319432751,1710736300695,-1212.73,0.0003178,4]
[319432752,1710736300708,-1404.3,0.0003178,4]
[319432753,1710736300721,-24025.87,0.0003178,4]
[319432754,1710736300735,-500.0,0.0003178,4]
[319432755,1710736300750,-2851.25,0.0003178,4]
[319432756,1710736300763,-2546.72,0.0003178,4]
[319432757,1710736300776,-500.0,0.0003178,4]
[319432758,1710736300789,-2287.3,0.0003178,4]
[319432759,1710736300802,-500.0,0.0003178,4]
[319432760,1710736300814,-500.0,0.0003178,4]
[319432761,1710736300829,-647.58,0.0003178,4]
[319432762,1710736300842,-585.33,0.0003178,4]
[319432763,1710736300855,-1053.54,0.0003178,4]
[319432764,1710736300869,-500.0,0.0003178,4]
[319432765,1710736300881,-1503.64,0.0003178,4]
[319432766,1710736300895,-500.0,0.0003178,4]
[319432767,1710736300909,-1183.08,0.0003178,4]
[319432768,1710736300922,-500.0,0.0003178,4]
[319432769,1710736300935,-2122.6,0.0003178,4]
[319432770,1710736300948,-554.14,0.0003178,4]
[319432771,1710736300960,-500.0,0.0003178,4]
[319432772,1710736300973,-500.0,0.0003178,4]
[319432773,1710736300986,-513.85,0.0003178,4]
[319432774,1710736300998,-1088.26,0.0003178,4]
[319432775,1710736301011,-1355.29,0.0003178,4]
[319432776,1710736301023,-1081.54,0.0003178,4]
[319432777,1710736301036,-602.31,0.0003178,4]
[319432778,1710736301049,-500.0,0.0003178,4]
[319432779,1710736301062,-16800.01,0.0003178,4]
[319432780,1710736301074,-500.0,0.0003178,4]
[319432781,1710736301088,-732.67,0.0003178,4]
[319432782,1710736301101,-249.89187724,0.0003178,4]
[319432783,1710736301114,-500.0,0.0003178,4]
[319432784,1710736301127,-500.0,0.0003178,4]
[319432785,1710736301140,-500.0,0.0003178,4]
[319432786,1710736301152,-500.0,0.0003178,4]
[319432787,1710736301164,-178.95908472,0.0003178,4]
[319432788,1710736301177,-494.91482591,0.0003178,4]
[319432789,1710736301190,-500.0,0.0003178,4]
[319432790,1710736301201,-742.96,0.0003178,4]
[319432791,1710736301213,-875.28,0.0003178,4]
[319432792,1710736301225,-500.0,0.0003178,4]
[319432793,1710736301238,-500.0,0.0003178,4]
[319432794,1710736301252,-500.0,0.0003178,4]
[319432795,1710736301264,-1382.05,0.0003178,4]
[319432796,1710736301276,-500.0,0.0003178,4]
[319432797,1710736301289,-9617.26,0.0003178,4]
[319432798,1710736301301,-632.75,0.0003178,4]
[319432799,1710736301312,-500.0,0.0003178,4]
[319432800,1710736301324,-523.3,0.0003178,4]
[319432801,1710736301337,-500.0,0.0003178,4]
[319432802,1710736301349,-9955.07,0.0003178,4]
[319432803,1710736301361,-1242.28,0.0003178,4]
[319432804,1710736301372,-508.25920935,0.0003178,4]
[319432805,1710736301384,-500.0,0.0003178,4]
[319432806,1710736301396,-815.39,0.0003178,4]
[319432807,1710736301408,-606.68,0.0003178,4]
[319432808,1710736301420,-2827.35,0.0003178,4]
[319432809,1710736301431,-500.0,0.0003178,4]
[319432810,1710736301443,-584.4,0.0003178,4]
[319432811,1710736301455,-500.0,0.0003178,4]
[319432812,1710736301467,-500.0,0.0003178,4]
[319432813,1710736301480,-2844.9,0.0003178,4]
[319432814,1710736301492,-500.0,0.0003178,4]
[319432815,1710736301506,-918.65,0.0003178,4]
[319432816,1710736301518,-2329.09,0.0003178,4]
[319432817,1710736301530,-500.0,0.0003178,4]
[319432818,1710736301542,-500.0,0.0003178,4]
[319432819,1710736301553,-506.30176693,0.0003178,4]
[319432820,1710736301564,-2657.41,0.0003178,4]
[319432821,1710736301576,-500.0,0.0003178,4]
[319432822,1710736301588,-5715.22,0.0003178,4]
[319432823,1710736301599,-500.0,0.0003178,4]
[319432824,1710736301611,-1178.39,0.0003178,4]
[319432825,1710736301622,-500.0,0.0003178,4]
[319432826,1710736301637,-500.0,0.0003178,4]
[319432827,1710736301649,-500.0,0.0003178,4]
[319432828,1710736301661,-1030.3,0.0003178,4]
[319432829,1710736301672,-7010.64,0.0003178,4]
[319432830,1710736301685,-500.0,0.0003178,4]
[319432831,1710736301696,-795.31,0.0003178,4]
[319432832,1710736301708,-500.0,0.0003178,4]
[319432833,1710736301720,-500.0,0.0003178,4]
[319432834,1710736301732,-647.9,0.0003178,4]
[319432835,1710736301744,-458.12006535,0.0003178,4]
[319432836,1710736301758,-756.1,0.0003178,4]
[319432837,1710736301771,-500.0,0.0003178,4]
[319432838,1710736301784,-500.0,0.0003178,4]
[319432839,1710736301795,-500.0,0.0003178,4]
[319432840,1710736301807,-1213.71,0.0003178,4]
[319432841,1710736301819,-3112.49,0.0003178,4]
[319432842,1710736301832,-169.39701868,0.0003178,4]
[319432843,1710736301844,-500.0,0.0003178,4]
[319432844,1710736301855,-16099.23,0.0003178,4]
[319432845,1710736301868,-180.44113342,0.0003178,4]
[319432846,1710736301880,-521.77105102,0.0003178,4]
[319432847,1710736301894,-1067.48,0.0003178,4]
[319432848,1710736301908,-1085.99,0.0003178,4]
[319432849,1710736301921,-500.0,0.0003178,4]
[319432850,1710736301935,-500.0,0.0003178,4]
[319432851,1710736301948,-500.0,0.0003178,4]
[319432852,1710736301963,-500.0,0.0003178,4]
[319432853,1710736301976,-7279.53,0.0003178,4]
[319432854,1710736301990,-3639.26,0.0003178,4]